[Event "WCCC U10 2019"]
[Site "Weifang"]
[Date "2019.08.22"]
[Round "2.3"]
[White "Bharadia Yash"]
[Black "Woodward, Andy"]
[Result "1-0"]
[ECO "B90"]
[WhiteElo "1963"]
[BlackElo "1522"]
[Annotator "NA"]
[PlyCount "87"]
[EventDate "2019.08.21"]
[EventType "swiss"]
[EventCountry "CHN"]
[SourceTitle "playchess.com"]
[Source "ChessBase"]
[SourceQuality "1"]
[TimeControl "40/5400+30:1800+30"]

1. e4 {[%emt 0:00:00]} c5 {[%emt 0:00:00]} 2. Nf3 {[%emt 0:00:00]} d6 {[%emt 0:00:00]} 3. d4 {[%emt 0:00:00]} cxd4 {[%emt 0:00:00]} 4. Nxd4 {[%emt 0:00:09]} Nf6 {[%emt 0:00:00]} 5. Nc3 {[%emt 0:00:14]} a6 {[%emt 0:00:00]} 6. Be3 {[%emt 0:00:33]} e5 {[%emt 0:00:00]} 7. Nb3 {[%emt 0:00:10]} Be6 {[%emt 0:00:00]} 8. f3 {[%emt 0:00:10]} Be7 {[%emt 0:00:00]} 9. Qd2 {[%emt 0:00:14]} O-O {[%emt 0:00:01]} 10. O-O-O {[%emt 0:00:09]} Nbd7 {[%emt 0:01:19]} 11. g4 {[%emt 0:00:15]} b5 {[%emt 0:00:06]} 12. h4 {[%emt 0:17:19]} b4 {[%emt 0:06:26]} 13. Ne2 {[%emt 0:05:50]} a5 {[%emt 0:00:33]} 14. Kb1 {[%emt 0:00:11]} Nb6 {[%emt 0:02:57]} 15. Ng3 {[%emt 0:01:46]} g6 {[%emt 0:03:14]} 16. h5 {[%emt 0:02:45]} Qc7 {[%emt 0:07:17]} 17. g5 {[%emt 0:06:54]} Nfd7 {[%emt 0:01:27]} 18. Qh2 {[%emt 0:00:58]} Rfc8 {[%emt 0:12:35]} 19. hxg6 {[%emt 0:00:32]} Nf8 {[%emt 0:01:05]} 20. g7 {[%emt 0:01:34]} Kxg7 {[%emt 0:03:56]} 21. Nh5+ {[%emt 0:16:53]} Kh8 {[%emt 0:08:31]} 22. Nf6 {[%emt 0:01:14]} Bxf6 {[%emt 0:00:13]} 23. gxf6 {[%emt 0:00:06]} a4 {[%emt 0:01:34]} 24. Bxb6 {[%emt 0:03:31]} Qc6 {[%emt 0:04:58]} 25. Bb5 {[%emt 0:05:02]} Qxc2+ {[%emt 0:07:22]} 26. Qxc2 {[%emt 0:00:12]} Rxc2 {[%emt 0:00:03]} 27. Kxc2 {[%emt 0:00:12]} axb3+ {[%emt 0:00:07]} 28. axb3 {[%emt 0:00:09]} Rc8+ {[%emt 0:00:05]} 29. Bc4 {[%emt 0:00:44]} Nd7 {[%emt 0:00:25]} 30. Rxd6 {[%emt 0:00:17]} Bxc4 {[%emt 0:00:23]} 31. bxc4 {[%emt 0:00:11]} Nf8 {[%emt 0:00:23]} 32. c5 {[%emt 0:00:09]} Ne6 {[%emt 0:00:04]} 33. c6 {[%emt 0:00:10]} Kg8 {[%emt 0:00:34]} 34. Rhd1 {[%emt 0:00:19]} h5 {[%emt 0:00:22]} 35. Rd8+ {[%emt 0:00:36]} Rxd8 {[%emt 0:00:15]} 36. Rxd8+ {[%emt 0:00:16]} Kh7 {[%emt 0:00:04]} 37. Re8 {[%emt 0:00:36]} h4 {[%emt 0:00:06]} 38. Rxe6 {[%emt 0:00:39]} h3 {[%emt 0:00:07]} 39. Rxe5 {[%emt 0:01:12]} Kg6 {[%emt 0:01:03]} 40. c7 {[%emt 0:00:44]} h2 {[%emt 0:00:08]} 41. c8=Q {[%emt 0:30:16]} h1=Q {[%emt 0:30:10]} 42. Qf5+ {[%emt 0:00:05]} Kh6 {[%emt 0:00:10]} 43. Qg5+ {[%emt 0:00:15]} Kh7 {[%emt 0:00:08]} 44. Qg7# {[%emt 0:00:08]} 1-0

[Event "WCCC U10 2019"]
[Site "Weifang"]
[Date "2019.08.22"]
[Round "2.4"]
[White "Sowinski, Pawel"]
[Black "Lu, Miaoyi"]
[Result "1-0"]
[ECO "B19"]
[WhiteElo "1582"]
[BlackElo "1950"]
[Annotator "NA"]
[PlyCount "121"]
[EventDate "2019.08.21"]
[EventType "swiss"]
[EventCountry "CHN"]
[SourceTitle "playchess.com"]
[Source "ChessBase"]
[SourceQuality "1"]
[TimeControl "40/5400+30:1800+30"]

1. e4 {[%emt 0:00:00]} c6 {[%emt 0:00:00]} 2. d4 {[%emt 0:00:36]} d5 {[%emt 0:00:00]} 3. Nc3 {[%emt 0:00:50]} dxe4 {[%emt 0:00:00]} 4. Nxe4 {[%emt 0:00:26]} Bf5 {[%emt 0:00:00]} 5. Ng3 {[%emt 0:00:26]} Bg6 {[%emt 0:00:00]} 6. h4 {[%emt 0:00:26]} h6 {[%emt 0:00:00]} 7. Nf3 {[%emt 0:00:57]} Nd7 {[%emt 0:00:00]} 8. Bd3 {[%emt 0:03:04]} Bxd3 {[%emt 0:00:58]} 9. Qxd3 {[%emt 0:00:23]} e6 {[%emt 0:00:55]} 10. O-O {[%emt 0:01:50]} Ngf6 {[%emt 0:01:04]} 11. Re1 {[%emt 0:01:04]} Be7 {[%emt 0:03:28]} 12. c4 {[%emt 0:02:53]} O-O {[%emt 0:01:13]} 13. Bf4 {[%emt 0:01:00]} Nb6 {[%emt 0:04:49]} 14. Rad1 {[%emt 0:02:48]} c5 {[%emt 0:04:46]} 15. d5 {[%emt 0:05:06]} exd5 {[%emt 0:05:25]} 16. Nf5 {[%emt 0:00:10]} Re8 {[%emt 0:02:34]} 17. cxd5 {[%emt 0:00:19]} Nfxd5 {[%emt 0:06:52]} 18. Qe4 {[%emt 0:04:40]} Bf6 {[%emt 0:05:44]} 19. Be5 {[%emt 0:05:29]} Bxe5 {[%emt 0:04:48]} 20. Nxe5 {[%emt 0:00:15]} Qf6 {[%emt 0:01:24]} 21. g4 {[%emt 0:05:21]} Rad8 {[%emt 0:06:58]} 22. f4 {[%emt 0:02:43]} Kf8 {[%emt 0:08:02]} 23. Rxd5 {[%emt 0:03:12]} g6 {[%emt 0:12:09]} 24. Rxd8 {[%emt 0:05:20]} Rxd8 {[%emt 0:01:02]} 25. Qxb7 {[%emt 0:24:56]} gxf5 {[%emt 0:01:41]} 26. g5 {[%emt 0:00:16]} hxg5 {[%emt 0:04:43]} 27. hxg5 {[%emt 0:00:39]} Qg7 {[%emt 0:02:47]} 28. Nc6 {[%emt 0:00:27]} Rc8 {[%emt 0:04:28]} 29. Re5 {[%emt 0:03:36]} Ra8 {[%emt 0:06:53]} 30. Nb8 {[%emt 0:08:44]} Kg8 {[%emt 0:04:14]} 31. Nd7 {[%emt 0:03:19]} Nxd7 {[%emt 0:05:54]} 32. Qxd7 {[%emt 0:00:37]} Rb8 {[%emt 0:01:59]} 33. Qxf5 {[%emt 0:00:48]} Rd8 {[%emt 0:00:50]} 34. Qe4 {[%emt 0:00:34]} Kf8 {[%emt 0:00:35]} 35. Qc6 {[%emt 0:00:43]} Qh7 {[%emt 0:00:30]} 36. Qh6+ {[%emt 0:01:16]} Kg8 {[%emt 0:00:38]} 37. Qxh7+ {[%emt 0:01:09]} Kxh7 {[%emt 0:00:01]} 38. Rxc5 {[%emt 0:00:12]} Rd1+ {[%emt 0:00:31]} 39. Kg2 {[%emt 0:00:14]} Rd2+ {[%emt 0:00:07]} 40. Kf3 {[%emt 0:00:27]} Rxb2 {[%emt 0:00:03]} 41. Ra5 {[%emt 0:30:14]} Rb7 {[%emt 0:30:11]} 42. Ra6 {[%emt 0:00:17]} Kg7 {[%emt 0:00:00]} 43. Kg4 {[%emt 0:00:00]} Rc7 {[%emt 0:00:00]} 44. f5 {[%emt 0:00:00]} Rb7 {[%emt 0:00:00]} 45. Kh5 {[%emt 0:00:00]} Rc7 {[%emt 0:00:00]} 46. g6 {[%emt 0:00:00]} fxg6+ {[%emt 0:00:00]} 47. Rxg6+ {[%emt 0:00:00]} Kf7 {[%emt 0:00:00]} 48. Ra6 {[%emt 0:00:00]} Kg7 {[%emt 0:00:00]} 49. a4 {[%emt 0:00:00]} Rb7 {[%emt 0:01:30]} 50. Kg5 {[%emt 0:00:00]} Rc7 {[%emt 0:01:51]} 51. a5 {[%emt 0:00:00]} Rd7 {[%emt 0:01:02]} 52. Rc6 {[%emt 0:00:00]} Kf7 {[%emt 0:00:54]} 53. a6 {[%emt 0:00:00]} Kg7 {[%emt 0:01:47]} 54. Rc8 {[%emt 0:00:00]} Kf7 {[%emt 0:00:48]} 55. Rb8 {[%emt 0:00:00]} Rd6 {[%emt 0:00:50]} 56. Rb7+ {[%emt 0:00:00]} Kf8 {[%emt 0:00:02]} 57. Rxa7 {[%emt 0:00:00]} Rb6 {[%emt 0:00:04]} 58. f6 {[%emt 0:00:00]} Rb1 {[%emt 0:00:07]} 59. Rb7 {[%emt 0:00:00]} Rg1+ {[%emt 0:00:13]} 60. Kh4 {[%emt 0:00:00]} Rh1+ {[%emt 0:00:43]} 61. Kg3 {[%emt 0:01:28]} 1-0

[Event "WCCC U10 2019"]
[Site "Weifang"]
[Date "2019.08.22"]
[Round "2.5"]
[White "Kong, Xiangrui"]
[Black "Zhang, Enming"]
[Result "1-0"]
[ECO "B92"]
[WhiteElo "1889"]
[BlackElo "1457"]
[Annotator "NA"]
[PlyCount "131"]
[EventDate "2019.08.21"]
[EventType "swiss"]
[EventCountry "CHN"]
[SourceTitle "playchess.com"]
[Source "ChessBase"]
[SourceQuality "1"]
[TimeControl "40/5400+30:1800+30"]

1. e4 {[%emt 0:00:00]} c5 {[%emt 0:00:00]} 2. Nf3 {[%emt 0:00:00]} d6 {[%emt 0:00:00]} 3. d4 {[%emt 0:00:00]} cxd4 {[%emt 0:00:00]} 4. Nxd4 {[%emt 0:00:00]} Nf6 {[%emt 0:00:00]} 5. Nc3 {[%emt 0:00:00]} a6 {[%emt 0:00:09]} 6. Be2 {[%emt 0:00:00]} e5 {[%emt 0:00:19]} 7. Nb3 {[%emt 0:00:00]} Be7 {[%emt 0:00:10]} 8. Bg5 {[%emt 0:00:00]} Be6 {[%emt 0:00:08]} 9. Bxf6 {[%emt 0:00:03]} Bxf6 {[%emt 0:00:06]} 10. Qd3 {[%emt 0:00:04]} Bg5 {[%emt 0:04:33]} 11. Rd1 {[%emt 0:00:40]} Nc6 {[%emt 0:02:44]} 12. Qxd6 {[%emt 0:04:41]} Qxd6 {[%emt 0:00:07]} 13. Rxd6 {[%emt 0:00:04]} Ke7 {[%emt 0:00:06]} 14. Rd1 {[%emt 0:00:43]} Nb4 {[%emt 0:00:24]} 15. Bd3 {[%emt 0:01:44]} Rac8 {[%emt 0:03:02]} 16. a3 {[%emt 0:02:44]} Nxd3+ {[%emt 0:00:49]} 17. Rxd3 {[%emt 0:00:05]} Rhd8 {[%emt 0:00:31]} 18. Rxd8 {[%emt 0:03:04]} Rxd8 {[%emt 0:00:13]} 19. O-O {[%emt 0:00:40]} f5 {[%emt 0:14:13]} 20. Nc5 {[%emt 0:05:45]} Bc4 {[%emt 0:02:58]} 21. Rb1 {[%emt 0:03:17]} Rd2 {[%emt 0:10:37]} 22. exf5 {[%emt 0:13:09]} Rxc2 {[%emt 0:00:13]} 23. Nxb7 {[%emt 0:01:31]} Bc1 {[%emt 0:02:33]} 24. Na5 {[%emt 0:03:49]} Bxb2 {[%emt 0:04:41]} 25. Nxc4 {[%emt 0:08:34]} Bxc3 {[%emt 0:01:53]} 26. Ne3 {[%emt 0:00:42]} Rd2 {[%emt 0:01:49]} 27. g4 {[%emt 0:01:37]} Bd4 {[%emt 0:01:54]} 28. Rb7+ {[%emt 0:02:34]} Kf6 {[%emt 0:03:47]} 29. h4 {[%emt 0:12:49]} Bxe3 {[%emt 0:01:09]} 30. fxe3 {[%emt 0:00:06]} Rd6 {[%emt 0:00:59]} 31. e4 {[%emt 0:01:16]} h6 {[%emt 0:00:53]} 32. Kf2 {[%emt 0:01:56]} Rc6 {[%emt 0:01:09]} 33. Ke2 {[%emt 0:01:37]} Rd6 {[%emt 0:01:09]} 34. Ke3 {[%emt 0:02:25]} Rc6 {[%emt 0:00:39]} 35. g5+ {[%emt 0:02:08]} hxg5 {[%emt 0:00:08]} 36. hxg5+ {[%emt 0:00:02]} Kxg5 {[%emt 0:00:08]} 37. Rxg7+ {[%emt 0:00:01]} Kh6 {[%emt 0:00:30]} 38. Rd7 {[%emt 0:00:41]} Kg5 {[%emt 0:00:22]} 39. Kd3 {[%emt 0:02:43]} Kg4 {[%emt 0:02:07]} 40. Re7 {[%emt 0:00:43]} Kf4 {[%emt 0:00:43]} 41. Re6 {[%emt 0:30:44]} Rc7 {[%emt 0:30:26]} 42. Rd6 {[%emt 0:04:45]} a5 {[%emt 0:00:35]} 43. f6 {[%emt 0:00:54]} a4 {[%emt 0:00:19]} 44. Ra6 {[%emt 0:03:36]} Rd7+ {[%emt 0:00:17]} 45. Ke2 {[%emt 0:00:28]} Kxe4 {[%emt 0:00:06]} 46. Rxa4+ {[%emt 0:00:05]} Kf5 {[%emt 0:00:21]} 47. Ra6 {[%emt 0:00:07]} e4 {[%emt 0:00:21]} 48. a4 {[%emt 0:00:11]} Kf4 {[%emt 0:00:20]} 49. a5 {[%emt 0:02:07]} e3 {[%emt 0:01:03]} 50. Rb6 {[%emt 0:01:01]} Rd2+ {[%emt 0:00:39]} 51. Ke1 {[%emt 0:00:06]} Rd7 {[%emt 0:00:19]} 52. a6 {[%emt 0:00:39]} Kf3 {[%emt 0:00:38]} 53. Rb7 {[%emt 0:00:30]} Rd8 {[%emt 0:01:49]} 54. Rh7 {[%emt 0:02:52]} Rb8 {[%emt 0:02:24]} 55. Rh3+ {[%emt 0:00:29]} Ke4 {[%emt 0:00:16]} 56. a7 {[%emt 0:01:09]} Rc8 {[%emt 0:00:57]} 57. f7 {[%emt 0:00:54]} Kd3 {[%emt 0:01:05]} 58. Kd1 {[%emt 0:00:54]} Ra8 {[%emt 0:01:15]} 59. Rf3 {[%emt 0:00:49]} Rh8 {[%emt 0:00:54]} 60. Kc1 {[%emt 0:00:53]} Rh1+ {[%emt 0:01:28]} 61. Kb2 {[%emt 0:00:15]} Rh2+ {[%emt 0:00:14]} 62. Kb3 {[%emt 0:00:02]} Kd2 {[%emt 0:00:18]} 63. a8=Q {[%emt 0:00:11]} e2 {[%emt 0:00:19]} 64. f8=Q {[%emt 0:00:07]} e1=Q {[%emt 0:00:10]} 65. Qd6+ {[%emt 0:00:15]} Kc1 {[%emt 0:00:13]} 66. Qa1# {[%emt 0:00:03]} 1-0

[Event "WCCC U10 2019"]
[Site "Weifang"]
[Date "2019.08.22"]
[Round "2.6"]
[White "Zhang, Lichen"]
[Black "Jakhari, Ansh"]
[Result "1-0"]
[ECO "A28"]
[WhiteElo "1482"]
[BlackElo "1878"]
[Annotator "NA"]
[PlyCount "69"]
[EventDate "2019.08.21"]
[EventType "swiss"]
[EventCountry "CHN"]
[SourceTitle "playchess.com"]
[Source "ChessBase"]
[SourceQuality "1"]
[TimeControl "40/5400+30:1800+30"]

1. c4 {[%emt 0:00:00]} e5 {[%emt 0:00:00]} 2. Nc3 {[%emt 0:00:00]} Nf6 {[%emt 0:00:10]} 3. Nf3 {[%emt 0:00:39]} Nc6 {[%emt 0:00:18]} 4. e3 {[%emt 0:00:32]} Bb4 {[%emt 0:07:50]} 5. Qc2 {[%emt 0:00:32]} O-O {[%emt 0:01:32]} 6. Nd5 {[%emt 0:00:57]} Be7 {[%emt 0:07:26]} 7. Be2 {[%emt 0:02:23]} d6 {[%emt 0:04:14]} 8. Nxe7+ {[%emt 0:00:26]} Qxe7 {[%emt 0:00:06]} 9. O-O {[%emt 0:00:18]} Bg4 {[%emt 0:01:22]} 10. h3 {[%emt 0:03:01]} Bh5 {[%emt 0:02:20]} 11. d3 {[%emt 0:02:23]} Rfe8 {[%emt 0:07:04]} 12. b3 {[%emt 0:02:36]} a5 {[%emt 0:14:03]} 13. a3 {[%emt 0:04:59]} h6 {[%emt 0:04:25]} 14. Bb2 {[%emt 0:01:01]} Qe6 {[%emt 0:01:56]} 15. Rfe1 {[%emt 0:02:08]} Bg6 {[%emt 0:00:49]} 16. Qc3 {[%emt 0:01:12]} d5 {[%emt 0:08:38]} 17. Rad1 {[%emt 0:02:13]} Rad8 {[%emt 0:01:58]} 18. Nh2 {[%emt 0:04:03]} d4 {[%emt 0:05:01]} 19. exd4 {[%emt 0:02:10]} exd4 {[%emt 0:02:48]} 20. Qd2 {[%emt 0:02:28]} Qd6 {[%emt 0:01:38]} 21. Bf1 {[%emt 0:02:33]} Ne5 {[%emt 0:03:43]} 22. Qxa5 {[%emt 0:03:12]} Bh5 {[%emt 0:00:29]} 23. Rc1 {[%emt 0:01:16]} Nc6 {[%emt 0:03:41]} 24. Qd2 {[%emt 0:01:00]} b6 {[%emt 0:05:10]} 25. b4 {[%emt 0:02:13]} Ne5 {[%emt 0:01:21]} 26. c5 {[%emt 0:02:21]} Qd5 {[%emt 0:00:55]} 27. cxb6 {[%emt 0:00:34]} cxb6 {[%emt 0:00:04]} 28. f4 {[%emt 0:02:10]} Ned7 {[%emt 0:00:38]} 29. g4 {[%emt 0:00:45]} Bg6 {[%emt 0:00:07]} 30. Bg2 {[%emt 0:00:31]} Qb3 {[%emt 0:00:45]} 31. f5 {[%emt 0:00:30]} Bh7 {[%emt 0:00:05]} 32. Nf3 {[%emt 0:01:25]} Rxe1+ {[%emt 0:01:13]} 33. Rxe1 {[%emt 0:00:22]} h5 {[%emt 0:00:45]} 34. Nxd4 {[%emt 0:00:25]} Qa2 {[%emt 0:00:07]} 35. Ra1 {[%emt 0:00:41]} 1-0

[Event "WCCC U10 2019"]
[Site "Weifang"]
[Date "2019.08.22"]
[Round "2.7"]
[White "Renji, Rafael Ninan"]
[Black "Meng, Yihan"]
[Result "1-0"]
[ECO "A45"]
[WhiteElo "1446"]
[BlackElo "1793"]
[Annotator "NA"]
[PlyCount "139"]
[EventDate "2019.08.21"]
[EventType "swiss"]
[EventCountry "CHN"]
[SourceTitle "playchess.com"]
[Source "ChessBase"]
[SourceQuality "1"]
[TimeControl "40/5400+30:1800+30"]

1. d4 {[%emt 0:00:00]} Nf6 {[%emt 0:00:00]} 2. Bg5 {[%emt 0:00:00]} g6 {[%emt 0:00:05]} 3. Bxf6 {[%emt 0:00:00]} exf6 {[%emt 0:00:10]} 4. e3 {[%emt 0:00:06]} Bg7 {[%emt 0:00:23]} 5. Nf3 {[%emt 0:00:07]} O-O {[%emt 0:00:37]} 6. Bd3 {[%emt 0:00:19]} f5 {[%emt 0:00:57]} 7. O-O {[%emt 0:00:11]} d6 {[%emt 0:01:31]} 8. Nbd2 {[%emt 0:01:25]} Nd7 {[%emt 0:01:05]} 9. c3 {[%emt 0:00:56]} Nf6 {[%emt 0:01:02]} 10. Re1 {[%emt 0:01:50]} b6 {[%emt 0:01:23]} 11. e4 {[%emt 0:01:57]} fxe4 {[%emt 0:01:04]} 12. Nxe4 {[%emt 0:00:18]} Bb7 {[%emt 0:01:42]} 13. Nxf6+ {[%emt 0:01:43]} Qxf6 {[%emt 0:00:32]} 14. Be4 {[%emt 0:01:05]} d5 {[%emt 0:02:50]} 15. Bc2 {[%emt 0:01:48]} c5 {[%emt 0:01:32]} 16. Qd2 {[%emt 0:02:37]} c4 {[%emt 0:01:33]} 17. Ne5 {[%emt 0:02:12]} Qd6 {[%emt 0:01:11]} 18. Re2 {[%emt 0:03:17]} f6 {[%emt 0:01:33]} 19. Nf3 {[%emt 0:00:45]} Rae8 {[%emt 0:01:31]} 20. Rae1 {[%emt 0:00:48]} Kf7 {[%emt 0:01:21]} 21. h4 {[%emt 0:02:27]} Bc8 {[%emt 0:01:32]} 22. h5 {[%emt 0:01:17]} Bg4 {[%emt 0:01:33]} 23. hxg6+ {[%emt 0:01:01]} hxg6 {[%emt 0:00:13]} 24. Bxg6+ {[%emt 0:00:18]} Kxg6 {[%emt 0:00:06]} 25. Rxe8 {[%emt 0:01:16]} Rxe8 {[%emt 0:01:17]} 26. Rxe8 {[%emt 0:00:00]} Bxf3 {[%emt 0:00:45]} 27. gxf3 {[%emt 0:00:00]} Qd7 {[%emt 0:01:26]} 28. Re1 {[%emt 0:00:50]} Qf5 {[%emt 0:01:15]} 29. Qe2 {[%emt 0:03:05]} Bh6 {[%emt 0:10:48]} 30. Qe8+ {[%emt 0:01:42]} Kg5 {[%emt 0:00:08]} 31. Qg8+ {[%emt 0:00:27]} Kh5 {[%emt 0:01:43]} 32. Kg2 {[%emt 0:02:00]} Qg6+ {[%emt 0:00:39]} 33. Qxg6+ {[%emt 0:00:24]} Kxg6 {[%emt 0:00:05]} 34. Re2 {[%emt 0:01:36]} Bf4 {[%emt 0:01:31]} 35. b3 {[%emt 0:00:45]} b5 {[%emt 0:00:26]} 36. bxc4 {[%emt 0:01:16]} bxc4 {[%emt 0:00:14]} 37. Kf1 {[%emt 0:02:24]} Kf7 {[%emt 0:01:15]} 38. Rb2 {[%emt 0:00:35]} Ke6 {[%emt 0:01:08]} 39. Ke2 {[%emt 0:00:41]} Bc7 {[%emt 0:00:36]} 40. Rb5 {[%emt 0:00:56]} Kd6 {[%emt 0:02:30]} 41. Ke3 {[%emt 0:32:02]} a6 {[%emt 0:30:57]} 42. Rb7 {[%emt 0:02:23]} Ba5 {[%emt 0:00:53]} 43. Kd2 {[%emt 0:00:25]} Bd8 {[%emt 0:00:39]} 44. Ra7 {[%emt 0:03:50]} a5 {[%emt 0:00:20]} 45. Ke3 {[%emt 0:01:20]} Kc6 {[%emt 0:01:42]} 46. Ra8 {[%emt 0:00:59]} Bb6 {[%emt 0:04:47]} 47. Kf4 {[%emt 0:02:04]} Bc7+ {[%emt 0:04:32]} 48. Kf5 {[%emt 0:00:35]} Kb7 {[%emt 0:00:24]} 49. Rf8 {[%emt 0:00:53]} Bd6 {[%emt 0:01:09]} 50. Rf7+ {[%emt 0:00:35]} Kc8 {[%emt 0:00:32]} 51. Rxf6 {[%emt 0:00:22]} Ba3 {[%emt 0:00:22]} 52. Ra6 {[%emt 0:01:38]} Bb2 {[%emt 0:00:21]} 53. Rxa5 {[%emt 0:00:29]} Bxc3 {[%emt 0:00:07]} 54. Rxd5 {[%emt 0:00:08]} Bb4 {[%emt 0:00:14]} 55. Ke4 {[%emt 0:01:05]} Kc7 {[%emt 0:00:09]} 56. Rc5+ {[%emt 0:00:18]} Bxc5 {[%emt 0:00:06]} 57. dxc5 {[%emt 0:00:05]} Kc6 {[%emt 0:00:07]} 58. Kd4 {[%emt 0:00:07]} Kb5 {[%emt 0:00:06]} 59. c6 {[%emt 0:00:14]} Kxc6 {[%emt 0:00:11]} 60. Kxc4 {[%emt 0:00:05]} Kd6 {[%emt 0:00:07]} 61. a4 {[%emt 0:00:22]} Kc6 {[%emt 0:00:34]} 62. a5 {[%emt 0:00:10]} Kb7 {[%emt 0:00:45]} 63. f4 {[%emt 0:00:28]} Kc6 {[%emt 0:00:07]} 64. f5 {[%emt 0:00:06]} Kd6 {[%emt 0:00:06]} 65. a6 {[%emt 0:00:05]} Kc6 {[%emt 0:00:03]} 66. f6 {[%emt 0:00:08]} Kb6 {[%emt 0:00:06]} 67. f7 {[%emt 0:00:06]} Kxa6 {[%emt 0:00:14]} 68. f8=Q {[%emt 0:00:11]} Ka5 {[%emt 0:00:17]} 69. Qf6 {[%emt 0:00:15]} Ka4 {[%emt 0:00:30]} 70. Qa1# {[%emt 0:00:02]} 1-0

[Event "WCCC U10 2019"]
[Site "Weifang"]
[Date "2019.08.22"]
[Round "2.8"]
[White "Efimov, Leonid"]
[Black "Xiong, Junyi"]
[Result "0-1"]
[ECO "E18"]
[WhiteElo "1773"]
[BlackElo "1440"]
[Annotator "NA"]
[PlyCount "86"]
[EventDate "2019.08.21"]
[EventType "swiss"]
[EventCountry "CHN"]
[SourceTitle "playchess.com"]
[Source "ChessBase"]
[SourceQuality "1"]
[TimeControl "40/5400+30:1800+30"]

1. Nf3 {[%emt 0:00:00]} Nf6 {[%emt 0:00:00]} 2. g3 {[%emt 0:00:00]} b6 {[%emt 0:00:00]} 3. Bg2 {[%emt 0:00:44]} Bb7 {[%emt 0:00:00]} 4. O-O {[%emt 0:00:20]} e6 {[%emt 0:00:07]} 5. c4 {[%emt 0:01:09]} Be7 {[%emt 0:00:10]} 6. d4 {[%emt 0:01:10]} O-O {[%emt 0:00:07]} 7. Nc3 {[%emt 0:01:05]} d6 {[%emt 0:01:22]} 8. Re1 {[%emt 0:05:05]} Nbd7 {[%emt 0:00:42]} 9. e4 {[%emt 0:02:28]} e5 {[%emt 0:00:08]} 10. b3 {[%emt 0:09:14]} a5 {[%emt 0:01:55]} 11. Bb2 {[%emt 0:03:56]} Re8 {[%emt 0:00:45]} 12. Qc2 {[%emt 0:02:15]} exd4 {[%emt 0:05:02]} 13. Nxd4 {[%emt 0:00:12]} Bf8 {[%emt 0:00:06]} 14. Rad1 {[%emt 0:02:26]} Nc5 {[%emt 0:00:31]} 15. f4 {[%emt 0:01:56]} Nfd7 {[%emt 0:03:15]} 16. a3 {[%emt 0:05:52]} g6 {[%emt 0:01:08]} 17. b4 {[%emt 0:00:46]} axb4 {[%emt 0:00:10]} 18. axb4 {[%emt 0:00:04]} Ne6 {[%emt 0:00:20]} 19. e5 {[%emt 0:01:06]} Bxg2 {[%emt 0:00:12]} 20. Qxg2 {[%emt 0:00:34]} Nxd4 {[%emt 0:00:41]} 21. Rxd4 {[%emt 0:00:52]} dxe5 {[%emt 0:01:38]} 22. fxe5 {[%emt 0:01:38]} Bd6 {[%emt 0:00:15]} 23. exd6 {[%emt 0:20:31]} Rxe1+ {[%emt 0:00:13]} 24. Kf2 {[%emt 0:00:25]} Qe8 {[%emt 0:00:06]} 25. Ne4 {[%emt 0:12:56]} Rb1 {[%emt 0:00:08]} 26. Rd2 {[%emt 0:01:57]} Ra2 {[%emt 0:02:04]} 27. Kf3 {[%emt 0:01:14]} cxd6 {[%emt 0:00:08]} 28. Bd4 {[%emt 0:13:10]} Rb3+ {[%emt 0:00:31]} 29. Kf4 {[%emt 0:02:52]} Rxd2 {[%emt 0:00:22]} 30. Qxd2 {[%emt 0:00:17]} Qe6 {[%emt 0:00:12]} 31. g4 {[%emt 0:02:04]} Ne5 {[%emt 0:00:08]} 32. Kg5 {[%emt 0:07:10]} Nf3+ {[%emt 0:00:11]} 33. Kh6 {[%emt 0:00:13]} Nxd2 {[%emt 0:00:14]} 34. Nf6+ {[%emt 0:00:15]} Kf8 {[%emt 0:00:09]} 35. Nxh7+ {[%emt 0:00:12]} Ke7 {[%emt 0:00:05]} 36. Bf6+ {[%emt 0:00:07]} Ke8 {[%emt 0:00:06]} 37. Kg7 {[%emt 0:00:25]} Rh3 {[%emt 0:00:10]} 38. Ng5 {[%emt 0:00:07]} Qxg4 {[%emt 0:00:08]} 39. Nxh3 {[%emt 0:00:38]} Qxh3 {[%emt 0:00:28]} 40. Bd4 {[%emt 0:00:18]} Ne4 {[%emt 0:00:09]} 41. Bxb6 {[%emt 0:30:10]} Qc3+ {[%emt 0:30:08]} 42. Kh7 {[%emt 0:00:06]} Kf8 {[%emt 0:00:13]} 43. h4 {[%emt 0:00:17]} Qg7# {[%emt 0:00:04]} 0-1